bitfinex-derivatives/quotes_BTCF0:USTF0_20250510
["timestamp","ask_amount","ask_price","bid_price","bid_amount"]
[1746919732785,0.8931298,104920.0,104910.0,0.62433525]
[1746919733182,0.8931298,104920.0,104910.0,0.62833525]
[1746919733883,0.8931298,104920.0,104910.0,0.62733525]
[1746919734076,0.8931298,104920.0,104910.0,0.63033525]
[1746919735481,0.89320033,104920.0,104910.0,0.63033525]
[1746919735686,0.8931298,104920.0,104910.0,0.40401525]
[1746919735881,0.8931298,104920.0,104910.0,0.63033525]
[1746919737188,0.8941298,104920.0,104910.0,0.62733525]
[1746919737384,0.8941298,104920.0,104910.0,0.62333525]
[1746919737985,0.8931298,104920.0,104910.0,0.62433525]
[1746919738578,0.6477298,104920.0,104910.0,0.81496525]
[1746919738780,0.6477298,104920.0,104910.0,1.17965763]
[1746919739378,0.64781201,104920.0,104910.0,1.17965763]
[1746919739586,0.6477298,104920.0,104910.0,1.17965763]
[1746919739783,0.6477298,104920.0,104910.0,1.12039391]
[1746919739981,0.6467298,104920.0,104910.0,1.12139391]
[1746919740583,0.64681201,104920.0,104910.0,1.12139391]
[1746919740784,0.64681201,104920.0,104910.0,0.93816525]
[1746919741186,0.6467298,104920.0,104910.0,1.12139391]
[1746919743090,0.2859298,104920.0,104910.0,1.12139391]
[1746919743287,0.6467298,104920.0,104910.0,0.3037]
[1746919743485,0.7772298,104920.0,104910.0,0.48692866]
[1746919743791,0.2868762,104940.0,104930.0,0.1905937]
[1746919744093,0.2868762,104940.0,104930.0,0.90062236]
[1746919744286,0.2868762,104940.0,104930.0,0.53982236]
[1746919744489,0.001,104940.0,104930.0,0.99203944]
[1746919744782,0.1915755,104940.0,104930.0,1.35283944]
[1746919744992,0.004,104940.0,104930.0,1.35283944]
[1746919745286,0.1945755,104940.0,104930.0,1.35283944]
[1746919745485,0.004,104940.0,104930.0,1.35283944]
[1746919745693,0.1905725,104950.0,104940.0,0.1905755]
[1746919745989,0.1905725,104950.0,104940.0,0.62680416]
[1746919746186,0.1905725,104950.0,104940.0,0.79280416]
[1746919746382,0.1905725,104950.0,104940.0,0.88809216]
[1746919746694,0.11996946,104960.0,104950.0,0.1905574]
[1746919746896,0.31050866,104960.0,104950.0,0.99038606]
[1746919747191,0.11996946,104960.0,104950.0,1.15638606]
[1746919747386,0.552321,104970.0,104960.0,0.1905392]
[1746919747588,0.552321,104970.0,104960.0,0.62956786]
[1746919747797,0.191521,104970.0,104960.0,0.85584786]
[1746919747995,0.191521,104970.0,104960.0,0.95112678]
[1746919748191,0.191521,104970.0,104960.0,1.11712678]
[1746919748384,0.191521,104970.0,104960.0,1.11612678]
[1746919748691,0.001,104970.0,104960.0,1.13065518]
[1746919748891,0.001,104970.0,104960.0,1.49145518]
[1746919749389,0.191521,104970.0,104960.0,1.49145518]
[1746919749692,0.001,104970.0,104960.0,0.94842652]
[1746919749898,0.001,104970.0,104960.0,1.49345518]
[1746919750090,0.001,104970.0,104960.0,1.13265518]
[1746919750283,0.001,104970.0,104960.0,0.94942652]
[1746919751198,0.001,104970.0,104960.0,1.31022652]
[1746919751385,0.001,104970.0,104960.0,0.94942652]
[1746919752795,0.19160321,104970.0,104960.0,0.94942652]
[1746919752996,0.191521,104970.0,104960.0,1.17258652]
[1746919753696,0.552321,104970.0,104960.0,0.72314652]
[1746919754301,0.191521,104970.0,104960.0,0.72314652]
[1746919754502,0.552321,104970.0,104960.0,0.53360732]
[1746919754696,0.322621,104970.0,104960.0,0.72414652]
[1746919754895,0.683421,104970.0,104960.0,0.72414652]
[1746919755402,0.86664966,104970.0,104960.0,0.4383284]
[1746919755592,0.818321,104970.0,104960.0,0.4383284]
[1746919755791,0.818321,104970.0,104960.0,0.53359825]
[1746919757596,1.09681766,104970.0,104960.0,0.168]
[1746919757797,0.818321,104970.0,104960.0,0.168]
[1746919758298,1.00154966,104970.0,104960.0,0.168]
[1746919758601,0.824321,104970.0,104960.0,0.4156]
[1746919758998,1.511721,104970.0,104960.0,0.4146]
[1746919759406,1.507721,104970.0,104960.0,0.4146]
[1746919759695,1.506721,104970.0,104960.0,0.4146]
[1746919759900,1.50680321,104970.0,104960.0,0.4146]
[1746919760198,1.506721,104970.0,104960.0,0.4146]
[1746919761597,0.822321,104970.0,104960.0,0.4146]
[1746919761790,0.91882029,104970.0,104960.0,0.4146]
[1746919761990,0.91682029,104970.0,104960.0,0.4146]
[1746919762597,0.91482029,104970.0,104960.0,0.4146]
[1746919763800,0.91482029,104970.0,104960.0,0.166]
[1746919764114,0.91482029,104970.0,104920.0,0.43256927]
[1746919764115,0.19063,104910.0,104900.0,0.69230826]
[1746919764299,0.55143,104910.0,104900.0,0.22196]
[1746919764600,0.19063,104910.0,104900.0,0.22196]
[1746919764803,0.19063,104910.0,104900.0,0.29991686]
[1746919765193,0.19163,104910.0,104900.0,0.47591686]
[1746919765500,0.19163,104910.0,104900.0,0.73191686]
[1746919765699,0.19263,104910.0,104900.0,0.74191686]
[1746919765997,0.19163,104910.0,104900.0,0.73191686]
[1746919766205,0.19063,104910.0,104900.0,0.72491686]
[1746919766792,0.19063,104910.0,104900.0,0.90514552]
[1746919766793,0.19271221,104910.0,104900.0,0.90514552]
[1746919767192,0.19270498,104910.0,104900.0,0.90514552]
[1746919767393,0.19463,104910.0,104900.0,0.90514552]
[1746919767603,0.19463,104910.0,104900.0,0.72191686]
[1746919768200,0.19263,104910.0,104900.0,0.72291686]
[1746919768404,0.19063,104910.0,104900.0,0.72491686]
[1746919768600,0.19063,104910.0,104900.0,0.53426866]
[1746919768806,0.55143,104910.0,104900.0,0.72491686]
[1746919769603,0.55143,104910.0,104900.0,0.53426866]
[1746919770006,0.68753,104910.0,104900.0,0.53426866]
[1746919770396,0.81573,104910.0,104900.0,0.53426866]
[1746919770807,0.81573,104910.0,104900.0,0.53326866]
[1746919771701,1.77868266,104910.0,104900.0,0.0989736]
[1746919771905,1.91028266,104910.0,104900.0,0.0989736]
[1746919772111,1.63173,104910.0,104900.0,0.0989736]
[1746919772503,1.63173,104910.0,104900.0,0.3643736]
[1746919772907,1.63181221,104910.0,104900.0,0.3623736]
[1746919773112,1.63381221,104910.0,104900.0,0.3623736]
[1746919773410,1.63373,104910.0,104900.0,0.3623736]
[1746919773613,1.63173,104910.0,104900.0,0.3623736]
[1746919773798,1.81495866,104910.0,104900.0,0.0969736]
[1746919774508,1.81695866,104910.0,104900.0,0.0959736]
[1746919775212,1.63373,104910.0,104900.0,0.0959736]
[1746919775403,1.81895866,104910.0,104900.0,0.0959736]
[1746919775810,1.81895866,104910.0,104900.0,0.2258736]
[1746919776306,1.63573,104910.0,104900.0,0.2258736]
[1746919776908,0.95133,104910.0,104900.0,0.2258736]
[1746919777207,0.95141221,104910.0,104900.0,0.2258736]
[1746919777809,1.385402,104910.0,104880.0,0.0010011]
[1746919778008,0.9122664,104890.0,104880.0,0.1291011]
[1746919778205,0.9122664,104890.0,104880.0,0.2951011]
[1746919778513,1.3147554,104890.0,104880.0,0.2951011]
[1746919779113,1.3147554,104890.0,104880.0,0.3021011]
[1746919779307,1.3157554,104890.0,104880.0,0.3121011]
[1746919779814,1.1760664,104890.0,104880.0,0.3121011]
[1746919780614,1.1760664,104890.0,104880.0,0.3051011]
[1746919780816,1.1770664,104890.0,104880.0,0.3151011]
[1746919784608,1.1770664,104890.0,104880.0,0.4401011]
[1746919784812,0.9142664,104890.0,104880.0,0.4401011]
[1746919785015,0.5534664,104890.0,104880.0,0.4401011]
[1746919786916,0.5534664,104890.0,104880.0,0.53544361]
[1746919788223,0.5534664,104890.0,104880.0,0.4401011]
[1746919788614,0.8216664,104890.0,104880.0,0.4401011]
[1746919791016,0.84532515,104890.0,104880.0,0.4401011]
[1746919791213,0.84532515,104890.0,104880.0,0.186]
[1746919791514,1.06976915,104890.0,104880.0,0.1421436]
[1746919792110,0.97442515,104890.0,104880.0,0.1421436]
[1746919792318,0.97442515,104890.0,104880.0,0.3983436]
[1746919792515,0.70902515,104890.0,104880.0,0.3983436]
[1746919792714,0.57712515,104890.0,104880.0,0.3983436]
[1746919794027,0.67374768,104890.0,104880.0,0.3983436]
[1746919794719,0.93754768,104890.0,104880.0,0.3983436]
[1746919794915,0.93762989,104890.0,104880.0,0.3983436]
[1746919795321,0.93754768,104890.0,104880.0,0.2699436]
[1746919795519,1.12095777,104890.0,104880.0,0.2699436]
[1746919796621,0.93754768,104890.0,104880.0,0.2699436]
[1746919797215,1.00031072,104890.0,104880.0,0.2699436]
[1746919798915,1.13401072,104890.0,104880.0,0.2699436]
[1746919799317,1.31742081,104890.0,104880.0,0.1421436]
[1746919799727,1.27377419,104890.0,104880.0,0.1421436]
[1746919800225,1.27377419,104890.0,104880.0,0.4045436]
[1746919801330,0.86501072,104890.0,104880.0,0.4045436]
[1746919801646,0.71293418,104890.0,104880.0,0.63964958]
[1746919801822,0.71285197,104890.0,104880.0,0.76824958]
[1746919802533,0.52218557,104890.0,104880.0,0.95893408]
[1746919802738,0.14534995,104900.0,104890.0,0.1906664]
[1746919803031,0.1906482,104900.0,104890.0,0.63016347]
[1746919803228,0.69121167,104900.0,104890.0,0.2956]
[1746919803426,0.69121167,104900.0,104890.0,0.39094251]
[1746919803735,0.2383034,104910.0,104900.0,0.1906482]
[1746919803930,0.19063,104910.0,104900.0,0.91891627]
[1746919804230,0.19063,104910.0,104900.0,1.03725587]
[1746919804428,0.19063,104910.0,104900.0,1.13258021]
[1746919805333,0.19063,104910.0,104900.0,0.39372434]
[1746919805531,0.19163,104910.0,104900.0,0.73113601]
[1746919805731,0.19163,104910.0,104900.0,1.09193601]
[1746919805936,0.19163,104910.0,104900.0,1.23153601]
[1746919806128,0.19163,104910.0,104900.0,1.35923601]
[1746919807032,0.19163,104910.0,104900.0,1.16858781]
[1746919807236,0.19163,104910.0,104900.0,0.99843601]
[1746919807439,0.19163,104910.0,104900.0,0.66802434]
[1746919808135,0.19163,104910.0,104900.0,0.85867254]
[1746919808533,0.19163,104910.0,104900.0,0.99843601]
[1746919809239,0.19163,104910.0,104900.0,0.63792434]
[1746919810439,0.19163,104910.0,104900.0,0.82857254]
[1746919811726,0.19163,104910.0,104900.0,0.63792434]
[1746919811933,0.19163,104910.0,104900.0,0.82857254]
[1746919812132,0.19163,104910.0,104900.0,0.63792434]
[1746919812636,0.19163,104910.0,104900.0,0.82857254]
[1746919813335,0.19163,104910.0,104900.0,0.63792434]
[1746919813529,0.55243,104910.0,104900.0,0.63792434]
[1746919813731,0.96469347,104910.0,104900.0,0.53562434]
[1746919813936,0.96469347,104910.0,104900.0,0.4403]
[1746919814331,0.82493,104910.0,104900.0,0.4403]
[1746919816136,1.50933,104910.0,104900.0,0.4403]
[1746919816341,1.64909347,104910.0,104900.0,0.4403]
[1746919816545,1.64909347,104910.0,104900.0,0.3126]
[1746919817041,1.74602648,104910.0,104900.0,0.3126]
[1746919817337,1.74602648,104910.0,104900.0,0.86333601]
[1746919817338,0.97296301,104910.0,104900.0,0.86333601]
[1746919817537,0.97296301,104910.0,104900.0,0.80758781]
[1746919817738,1.33376301,104910.0,104900.0,0.80758781]
[1746919817934,1.33376301,104910.0,104900.0,0.66782434]
[1746919818640,1.33376301,104910.0,104900.0,0.85847254]
[1746919818830,1.33376301,104910.0,104900.0,0.99823601]
[1746919819146,1.33376301,104910.0,104900.0,0.66782434]
[1746919819335,1.59596301,104910.0,104900.0,0.66782434]
[1746919819539,1.59604522,104910.0,104900.0,0.66782434]
[1746919819732,1.59604522,104910.0,104900.0,0.85847254]
[1746919819733,1.33384522,104910.0,104900.0,0.85847254]
[1746919820039,1.33376301,104910.0,104900.0,0.66782434]
[1746919821845,0.97296301,104910.0,104900.0,1.35903601]
[1746919822043,0.28856301,104910.0,104900.0,1.35903601]
[1746919823338,0.28856301,104910.0,104900.0,0.66782434]
[1746919823847,0.64936301,104910.0,104900.0,0.85847254]
[1746919824037,0.28856301,104910.0,104900.0,0.85847254]
[1746919824235,0.28856301,104910.0,104900.0,0.99823601]
[1746919824438,0.28856301,104910.0,104900.0,1.35903601]
[1746919824843,0.28856301,104910.0,104900.0,0.99823601]
[1746919825939,0.28856301,104910.0,104900.0,0.80758781]
[1746919826139,0.28856301,104910.0,104900.0,0.99823601]
[1746919827346,0.78912648,104910.0,104900.0,0.27532434]
[1746919827551,1.17342648,104910.0,104900.0,0.18]
[1746919828041,1.85782648,104910.0,104900.0,0.18]
[1746919828543,1.99758995,104910.0,104900.0,0.1402624]
[1746919828738,1.99758995,104910.0,104900.0,0.0935646]
[1746919829346,2.14129706,104910.0,104900.0,0.0605675]
[1746919829549,2.39129706,104910.0,104900.0,1e-07]
[1746919830349,0.1906482,104900.0,104890.0,1e-07]
[1746919830545,0.95821167,104900.0,104890.0,1e-07]
[1746919830750,1.30354367,104900.0,104890.0,1e-07]
[1746919831143,0.1906845,104880.0,104870.0,7e-08]
[1746919831345,1.04741144,104880.0,104870.0,7e-08]
[1746919831541,1.40226344,104880.0,104870.0,7e-08]
[1746919831944,1.41639973,104880.0,104870.0,7e-08]
[1746919832146,1.41639973,104880.0,104870.0,0.16600007]
[1746919832450,1.41739973,104880.0,104870.0,0.07636227]
[1746919832836,1.41839973,104880.0,104870.0,0.08736227]
[1746919833038,1.66839973,104880.0,104870.0,0.08736227]
[1746919833242,1.66839973,104880.0,104870.0,0.05069887]
[1746919833444,1.66839973,104880.0,104870.0,7e-08]
[1746919834251,1.38887279,104880.0,104870.0,0.16856089]
[1746919834450,1.66839973,104880.0,104870.0,0.16856089]
[1746919834752,1.66839973,104880.0,104870.0,9e-08]
[1746919835238,1.66839973,104880.0,104870.0,0.11135099]
[1746919835554,1.66839973,104880.0,104870.0,9e-08]
[1746919836039,1.52863626,104880.0,104870.0,9e-08]
[1746919836245,1.63227973,104880.0,104870.0,9e-08]
[1746919836553,1.68928149,104880.0,104870.0,9e-08]
[1746919837057,1.6893637,104880.0,104870.0,9e-08]
[1746919837251,1.19595455,104880.0,104870.0,9e-08]
[1746919837445,1.24036602,104880.0,104870.0,9e-08]
[1746919837952,1.38012949,104880.0,104870.0,9e-08]
[1746919839651,1.46804345,104880.0,104870.0,9e-08]
[1746919839851,1.32827998,104880.0,104870.0,9e-08]
[1746919840353,1.32836219,104880.0,104870.0,9e-08]
[1746919840550,1.32827998,104880.0,104870.0,9e-08]
[1746919840958,1.46804345,104880.0,104870.0,9e-08]
[1746919841256,1.56339545,104880.0,104860.0,0.0036]
[1746919841460,0.1907391,104850.0,104840.0,0.1387]
[1746919841648,1.73650257,104850.0,104840.0,0.1387]
[1746919841845,0.1907755,104830.0,104820.0,0.12900167]
[1746919842050,0.5515755,104830.0,104820.0,0.26770167]
[1746919842247,0.1907755,104830.0,104820.0,0.52905327]
[1746919842451,0.4662755,104830.0,104820.0,0.52905327]
[1746919842758,0.1907755,104830.0,104820.0,0.52905327]
[1746919843852,0.1917755,104830.0,104820.0,0.53405327]
[1746919844168,0.1927755,104830.0,104820.0,0.87161044]
[1746919844551,0.002,104830.0,104820.0,1.01137391]
[1746919844750,0.002,104830.0,104820.0,1.85096991]
[1746919845252,0.1907573,104840.0,104830.0,0.333835]
[1746919845456,0.1907573,104840.0,104830.0,0.96779847]
[1746919845754,0.8751546,104850.0,104840.0,0.1907573]
[1746919845954,0.8751546,104850.0,104840.0,0.82472077]
[1746919846158,0.1907546,104850.0,104840.0,0.62992077]
[1746919846355,0.1907546,104850.0,104840.0,1.08611786]
[1746919846548,0.1907546,104850.0,104840.0,0.72531786]
[1746919846754,0.1907546,104850.0,104840.0,1.08611786]
[1746919847056,0.1907546,104850.0,104840.0,0.39479709]
[1746919847255,0.1907546,104850.0,104840.0,0.58555439]
[1746919847657,0.1907546,104850.0,104840.0,0.39479709]
[1746919848048,0.1917546,104850.0,104840.0,0.39979709]
[1746919848254,0.5525546,104850.0,104840.0,0.39979709]
[1746919848555,0.5535546,104850.0,104840.0,0.40679709]
[1746919849154,0.5535546,104850.0,104840.0,0.3114]
[1746919849155,0.95251807,104850.0,104840.0,0.3114]
[1746919849362,0.8127546,104850.0,104840.0,0.3114]
[1746919849774,0.1907755,104830.0,104820.0,0.00100167]
[1746919849971,1.05213897,104830.0,104820.0,0.00100167]
[1746919850168,1.31493897,104830.0,104820.0,0.16700167]
[1746919850470,1.1751755,104830.0,104820.0,0.16700167]
[1746919850661,1.31493897,104830.0,104820.0,0.16700167]
[1746919851067,1.31593897,104830.0,104820.0,0.17100167]
[1746919851263,2.59806244,104830.0,104820.0,0.14043077]
[1746919851464,0.1908119,104810.0,104800.0,4e-08]
[1746919851665,0.1908483,104790.0,104780.0,0.1354]
[1746919851869,1.19197524,104790.0,104780.0,0.1354]
[1746919852076,0.1908847,104770.0,104760.0,0.00100224]
[1746919852262,0.1909212,104750.0,104740.0,0.1341]
[1746919852461,0.69148467,104750.0,104740.0,0.1341]
[1746919852867,0.69148467,104750.0,104740.0,0.14858557]
[1746919853172,0.69148467,104750.0,104740.0,0.41003729]
[1746919853679,1.44565657,104750.0,104720.0,0.14172701]
[1746919853969,0.1909576,104730.0,104720.0,0.4421827]
[1746919854180,0.33072107,104730.0,104720.0,0.4172114]
[1746919854378,0.47048454,104730.0,104720.0,0.4172114]
[1746919854581,0.96146675,104730.0,104720.0,0.30772701]
[1746919854777,1.09086675,104730.0,104720.0,0.30772701]
[1746919854974,1.77526675,104730.0,104720.0,0.30772701]
[1746919855171,1.77518454,104730.0,104720.0,0.30772701]
[1746919855372,1.77618454,104730.0,104720.0,0.166]
[1746919856585,1.77918454,104730.0,104720.0,0.2971]
[1746919856778,1.31182454,104730.0,104700.0,0.11558268]
[1746919856982,1.05235757,104710.0,104700.0,0.23210282]
[1746919857285,1.05235757,104710.0,104700.0,0.39810282]
[1746919857478,1.31205757,104710.0,104700.0,0.39810282]
[1746919857784,1.35636412,104710.0,104700.0,0.39810282]
[1746919858684,1.56788412,104710.0,104700.0,0.26700282]
[1746919859387,1.56888412,104710.0,104700.0,0.39380282]
[1746919859885,0.1910489,104680.0,104670.0,0.00857613]
[1746919860182,0.5518489,104680.0,104670.0,0.46114965]
[1746919860383,0.5518489,104680.0,104670.0,0.27008255]
[1746919860585,0.5518489,104680.0,104670.0,0.39658255]
[1746919861290,0.5518489,104680.0,104670.0,0.52338255]
[1746919861584,0.1920489,104680.0,104670.0,0.71444965]
[1746919861785,0.1920489,104680.0,104670.0,1.07524965]
[1746919861985,0.1920489,104680.0,104670.0,0.71444965]
[1746919862485,0.1930489,104680.0,104670.0,0.72859087]
[1746919862687,0.002,104680.0,104670.0,1.52346089]
[1746919862987,0.002,104680.0,104670.0,1.61899288]
[1746919863182,0.1930489,104680.0,104670.0,1.43492286]
[1746919863384,0.002,104680.0,104670.0,1.61899288]
[1746919863584,0.1930489,104680.0,104670.0,1.61899288]
[1746919864381,0.1930489,104680.0,104670.0,1.83219288]
[1746919864690,0.1930489,104680.0,104670.0,1.84219288]
[1746919865985,0.1930489,104680.0,104670.0,1.85712553]
[1746919867778,0.002,104680.0,104670.0,1.85712553]
[1746919868084,0.00208221,104680.0,104670.0,2.06772553]
[1746919868284,0.00207308,104680.0,104670.0,2.06772553]
[1746919868485,0.002,104680.0,104670.0,2.06772553]
[1746919868688,0.1930489,104680.0,104670.0,2.06772553]
[1746919868882,0.00208221,104680.0,104670.0,2.05772553]
[1746919869099,0.002,104680.0,104670.0,1.80764553]
[1746919869790,0.6844,104700.0,104690.0,0.1910306]
[1746919869994,0.6844,104730.0,104720.0,0.1909759]
[1746919870182,0.1909576,104730.0,104720.0,0.99731452]
[1746919870383,0.1909576,104730.0,104720.0,1.39314831]
[1746919870687,0.3883815,104740.0,104730.0,0.1909576]
[1746919870880,0.3406394,104740.0,104730.0,0.67532762]
[1746919871081,0.1909394,104740.0,104730.0,0.84132762]
[1746919871292,0.1909394,104740.0,104730.0,0.75274578]
[1746919871487,0.3406394,104740.0,104730.0,0.75274578]
[1746919871980,1.1115017,104750.0,104740.0,0.1909394]
[1746919872187,1.2612017,104750.0,104740.0,0.4937394]
[1746919872581,1.2612017,104750.0,104740.0,0.58921846]
[1746919872782,0.001,104760.0,104750.0,0.1909212]
[1746919872985,0.6854,104790.0,104770.0,0.0477173]
[1746919873182,0.3415529,104790.0,104780.0,0.4936665]
[1746919873594,0.3415529,104790.0,104780.0,0.3028]
[1746919873595,0.4822529,104790.0,104780.0,0.3028]
[1746919873790,0.8430529,104790.0,104780.0,0.1513]
[1746919873990,0.4822529,104790.0,104780.0,0.4376]
[1746919874191,0.8430529,104790.0,104780.0,0.6036]
[1746919874489,0.4822529,104790.0,104780.0,0.6036]
[1746919874793,0.2914,104790.0,104780.0,0.7462]
[1746919875496,0.2914,104790.0,104780.0,0.7472]
[1746919875497,0.2974,104790.0,104780.0,0.7472]
[1746919875694,0.3004,104790.0,104780.0,0.7482]
[1746919875993,0.004,104790.0,104780.0,1.29207002]
[1746919876194,0.008,104790.0,104780.0,0.7482]
[1746919876394,0.3455483,104790.0,104780.0,0.7482]
[1746919876588,0.4926483,104790.0,104780.0,0.4147335]
[1746919876784,0.8534483,104790.0,104780.0,0.168]
[1746919877189,1.03751832,104790.0,104780.0,0.168]
[1746919877492,1.38295032,104790.0,104780.0,0.168]
[1746919877695,1.52935032,104790.0,104780.0,0.168]
[1746919877889,1.18391832,104790.0,104780.0,0.168]
[1746919878086,0.9998483,104790.0,104780.0,0.3588665]
[1746919878793,0.9998483,104790.0,104780.0,0.4982665]
[1746919878997,0.99993051,104790.0,104780.0,0.4972665]
[1746919879190,1.0048483,104790.0,104780.0,0.4982665]
[1746919879595,0.8544483,104790.0,104780.0,0.4972665]
[1746919879789,0.5036483,104790.0,104780.0,0.5937]
[1746919879990,0.8644483,104790.0,104780.0,0.4028335]
[1746919880199,1.04851832,104790.0,104780.0,0.168]
[1746919881292,1.04751832,104790.0,104780.0,0.167]
[1746919882591,1.14295032,104790.0,104780.0,0.167]
[1746919882797,1.28045032,104790.0,104780.0,0.167]
[1746919882993,1.53045032,104790.0,104780.0,0.167]
[1746919883198,1.74017032,104790.0,104780.0,0.167]
[1746919884702,1.74017032,104790.0,104750.0,0.49507488]
[1746919884703,0.1909212,104750.0,104740.0,0.03041]
[1746919884894,1.09659122,104750.0,104740.0,0.03041]
[1746919885203,0.1909576,104730.0,104720.0,0.2861]
[1746919885598,0.4779576,104730.0,104720.0,0.39645161]
[1746919885798,0.8387576,104730.0,104720.0,0.15401811]
[1746919885999,1.02282762,104730.0,104720.0,0.01491811]
[1746919886193,0.1909759,104720.0,104710.0,1e-07]
[1746919886397,1.55964592,104720.0,104710.0,1e-07]
[1746919886596,1.65514192,104720.0,104710.0,1e-07]
[1746919886797,0.8753941,104710.0,104700.0,2e-08]
[1746919887001,1.57026412,104710.0,104700.0,2e-08]
[1746919887209,1.77866412,104710.0,104700.0,0.16600002]
[1746919887505,1.77866412,104710.0,104700.0,0.14051142]
[1746919888401,0.1910489,104680.0,104670.0,0.15030314]
[1746919888592,0.1910489,104680.0,104670.0,0.12045624]
[1746919888593,2.27330894,104680.0,104670.0,0.12045624]
[1746919888798,0.1910854,104660.0,104650.0,0.29689215]
[1746919889002,1.09675542,104660.0,104650.0,0.28256215]
[1746919889198,1.09675542,104660.0,104640.0,1.06276821]
[1746919889199,0.2388573,104660.0,104640.0,1.06276821]
[1746919889394,0.1910854,104660.0,104650.0,0.37350642]
[1746919889601,0.1910854,104660.0,104650.0,0.278]
[1746919889804,0.1910854,104660.0,104650.0,0.37355661]
[1746919890106,0.1910854,104660.0,104650.0,0.53955661]
[1746919890295,0.1960854,104660.0,104650.0,0.53955661]
[1746919890496,0.89155542,104660.0,104650.0,0.3054]
[1746919890700,0.89155542,104660.0,104650.0,0.166]
[1746919891003,0.89163763,104660.0,104650.0,0.166]
[1746919891194,0.89163763,104660.0,104640.0,0.00200339]
[1746919891195,0.8755036,104650.0,104640.0,0.00200339]
[1746919891395,1.59502499,104650.0,104640.0,0.00200339]
[1746919891595,1.98877362,104650.0,104640.0,0.00200339]
[1746919891794,1.98877362,104650.0,104640.0,0.00100339]
[1746919892004,2.13757362,104650.0,104640.0,0.00100339]
[1746919892205,1.92957362,104650.0,104640.0,0.16700339]
[1746919892395,1.93257362,104650.0,104640.0,0.16700339]
[1746919892595,1.1779036,104650.0,104640.0,0.16700339]
[1746919892795,0.8543036,104650.0,104640.0,0.54616457]
[1746919893003,1.03837362,104650.0,104640.0,0.45060339]
[1746919893302,0.67757362,104650.0,104640.0,0.45060339]
[1746919893495,1.03837362,104650.0,104640.0,0.45060339]
[1746919893694,0.8543036,104650.0,104640.0,0.45060339]
[1746919893997,0.003,104650.0,104640.0,1.28215649]
[1746919894200,0.1941036,104650.0,104640.0,0.73728647]
[1746919895999,0.1941036,104650.0,104640.0,1.09808647]
[1746919896201,0.1941036,104650.0,104640.0,1.37771649]
[1746919896704,0.1941036,104650.0,104640.0,0.16700339]
[1746919896906,0.1941036,104650.0,104640.0,0.54706457]
[1746919897402,0.37817362,104650.0,104640.0,0.52263377]
[1746919897609,1.02487362,104650.0,104640.0,0.27967259]
[1746919898000,1.02487362,104650.0,104640.0,0.07456299]
[1746919898298,1.02487362,104650.0,104640.0,0.04763549]
[1746919898897,1.02487362,104650.0,104640.0,9e-08]
[1746919899405,1.23475362,104650.0,104640.0,9e-08]
[1746919901805,1.02487362,104650.0,104640.0,9e-08]
[1746919902005,1.44183362,104650.0,104640.0,9e-08]
[1746919902407,1.43983362,104650.0,104640.0,9e-08]
[1746919902706,0.8498036,104650.0,104640.0,9e-08]
[1746919902921,1.03387362,104650.0,104640.0,0.28820009]
[1746919903113,1.03387362,104650.0,104640.0,9e-08]
[1746919903305,1.03287362,104650.0,104640.0,9e-08]
[1746919903606,1.03987362,104650.0,104640.0,9e-08]
[1746919904312,1.04187362,104650.0,104640.0,9e-08]
[1746919904509,0.1911584,104620.0,104610.0,0.00100368]
[1746919904699,0.5519584,104620.0,104610.0,0.28080368]
[1746919904899,0.1911584,104620.0,104610.0,0.28080368]
[1746919905102,0.37522842,104620.0,104610.0,0.44680368]
[1746919905399,0.8437584,104620.0,104610.0,0.4617478]
[1746919905600,0.8487584,104620.0,104610.0,0.4617478]
[1746919905799,0.3453584,104620.0,104610.0,0.4617478]
[1746919906111,0.1991584,104620.0,104610.0,0.64581782]
[1746919906313,0.008,104620.0,104610.0,1.38897109]
[1746919906499,0.1911402,104630.0,104620.0,0.2867247]
[1746919906807,0.4085769,104650.0,104640.0,0.1911219]
[1746919907007,0.3608,104650.0,104640.0,0.1911219]
[1746919907206,0.5519036,104650.0,104640.0,0.35007002]
[1746919907406,0.5519036,104650.0,104640.0,0.4591]
[1746919907608,0.5519036,104650.0,104640.0,0.55468858]
[1746919907807,0.5519036,104650.0,104640.0,0.54468858]
[1746919908213,0.5519036,104650.0,104640.0,0.55962824]
[1746919908403,0.5529036,104650.0,104640.0,0.55962824]
[1746919908804,0.5529036,104650.0,104640.0,0.46403966]
[1746919909011,0.6901036,104650.0,104640.0,0.46403966]
[1746919909210,0.8407036,104650.0,104640.0,0.31943966]
[1746919909418,1.12033362,104650.0,104640.0,1e-07]
[1746919909715,1.26233362,104650.0,104640.0,1e-07]
[1746919910119,1.26133362,104650.0,104640.0,0.1660001]
[1746919910318,1.26133362,104650.0,104640.0,0.1327679]
[1746919910821,1.26133362,104650.0,104640.0,0.0878855]
[1746919911010,1.26133362,104650.0,104640.0,1e-07]
[1746919911212,0.1911402,104630.0,104620.0,0.2873]
[1746919911411,0.9127402,104630.0,104620.0,0.2873]
[1746919911819,1.2038402,104630.0,104620.0,0.2873]
[1746919912411,1.2038402,104630.0,104620.0,0.30424392]
[1746919913114,1.20392241,104630.0,104620.0,0.30424392]
[1746919913316,1.2038402,104630.0,104620.0,0.30424392]
[1746919913922,1.2038402,104630.0,104620.0,0.30724392]
[1746919914726,1.2038402,104630.0,104620.0,0.16264392]
[1746919915229,1.38791022,104630.0,104620.0,0.01994392]
[1746919915729,1.38791022,104630.0,104620.0,0.02023389]
[1746919918130,1.35507002,104630.0,104550.0,0.66669354]
[1746919918321,0.4086245,104550.0,104520.0,0.45849164]
[1746919918524,0.912923,104530.0,104520.0,0.84599164]
[1746919918923,0.912923,104530.0,104520.0,0.75599164]
[1746919919124,1.09699302,104530.0,104520.0,0.65850894]
[1746919919432,1.24659302,104530.0,104520.0,0.17682814]
[1746919919828,1.71884556,104530.0,104520.0,0.17682814]
[1746919920026,1.71984556,104530.0,104520.0,0.10511854]
[1746919920330,1.72084556,104530.0,104520.0,4e-08]
[1746919920522,1.71984556,104530.0,104520.0,4e-08]
[1746919920822,1.72392777,104530.0,104520.0,4e-08]
[1746919921023,1.479803,104530.0,104520.0,4e-08]
[1746919921227,1.793003,104530.0,104520.0,4e-08]
[1746919921622,0.1913596,104510.0,104500.0,1.11340134]
[1746919921828,0.5521596,104510.0,104500.0,1.11340134]
[1746919922030,0.6970596,104510.0,104500.0,1.11340134]
[1746919922232,1.07930216,104510.0,104500.0,0.25837303]
[1746919922424,1.0420996,104510.0,104500.0,0.25837303]
[1746919922829,0.5551596,104510.0,104500.0,0.25937303]
[1746919923025,0.5551596,104510.0,104500.0,0.35506223]
[1746919923426,0.5551596,104510.0,104500.0,0.25937303]
[1746919923625,0.79920216,104510.0,104500.0,0.25937303]